[Event "*** SCC Grand Prix: Titled Tuesday Blitz"]
[Site "Chess.com"]
[Date "2020.06.02"]
[Round "7"]
[White "Norival"]
[Black "Sychev_Klementy"]
[Result "0-1"]
[WhiteElo "2656"]
[BlackElo "2844"]
[TimeControl "180+1"]
[EndTime "11:21:14 PDT"]
[Termination "Sychev_Klementy won by resignation"]

1. d4 {[%clk 0:03:00.9]} 1... Nf6 {[%clk 0:02:59.4]} 2. Nf3 {[%clk 0:03:00.8]}
2... g6 {[%clk 0:02:59.6]} 3. Bg5 {[%clk 0:02:59.4]} 3... Bg7 {[%clk 0:02:59.1]}
4. Nbd2 {[%clk 0:02:59.5]} 4... O-O {[%clk 0:02:58.7]} 5. c3 {[%clk 0:02:58.4]}
5... d5 {[%clk 0:02:57.8]} 6. e3 {[%clk 0:02:58]} 6... Nbd7 {[%clk 0:02:58]} 7.
Bd3 {[%clk 0:02:56.1]} 7... Re8 {[%clk 0:02:57.6]} 8. O-O {[%clk 0:02:56]} 8...
e5 {[%clk 0:02:56.5]} 9. dxe5 {[%clk 0:02:50.2]} 9... Nxe5 {[%clk 0:02:56.3]}
10. Nxe5 {[%clk 0:02:49.7]} 10... Rxe5 {[%clk 0:02:56.9]} 11. Nf3 {[%clk
0:02:50.3]} 11... Re8 {[%clk 0:02:57.3]} 12. Qb3 {[%clk 0:02:46.9]} 12... c6
{[%clk 0:02:51.3]} 13. Rfd1 {[%clk 0:02:45.1]} 13... Qb6 {[%clk 0:02:50.5]} 14.
h3 {[%clk 0:02:40.8]} 14... Ne4 {[%clk 0:02:45]} 15. Bxe4 {[%clk 0:02:39.8]}
15... Rxe4 {[%clk 0:02:20.4]} 16. Bf4 {[%clk 0:02:21.3]} 16... Qa6 {[%clk
0:02:14.3]} 17. Nd4 {[%clk 0:02:15.6]} 17... Bd7 {[%clk 0:02:08.1]} 18. Bg3
{[%clk 0:02:09.3]} 18... Rae8 {[%clk 0:01:58.2]} 19. Qc2 {[%clk 0:02:02.1]}
19... b6 {[%clk 0:01:29.9]} 20. Rd2 {[%clk 0:01:52.4]} 20... c5 {[%clk
0:01:27.7]} 21. Ne2 {[%clk 0:01:47.8]} 21... Ba4 {[%clk 0:01:20.9]} 22. b3
{[%clk 0:01:39.3]} 22... Bc6 {[%clk 0:01:18]} 23. Rad1 {[%clk 0:01:35]} 23... g5
{[%clk 0:01:11.3]} 24. Nc1 {[%clk 0:01:27.6]} 24... Qb7 {[%clk 0:01:08.4]} 25.
Nd3 {[%clk 0:01:23.3]} 25... f5 {[%clk 0:01:00.4]} 26. Bh2 {[%clk 0:01:00.5]}
26... Qf7 {[%clk 0:00:51]} 27. Qc1 {[%clk 0:00:53.3]} 27... Qf6 {[%clk
0:00:48.3]} 28. Rc2 {[%clk 0:00:44.7]} 28... Bb7 {[%clk 0:00:48.2]} 29. Ne1
{[%clk 0:00:44.2]} 29... h5 {[%clk 0:00:35.2]} 30. b4 {[%clk 0:00:40.5]} 30...
g4 {[%clk 0:00:27]} 31. h4 {[%clk 0:00:35.7]} 31... Qxh4 {[%clk 0:00:26]} 32.
bxc5 {[%clk 0:00:36]} 32... bxc5 {[%clk 0:00:25.6]} 33. Nd3 {[%clk 0:00:36.1]}
33... Qe7 {[%clk 0:00:18.6]} 34. Nf4 {[%clk 0:00:31.7]} 34... Qf7 {[%clk
0:00:18.8]} 35. Rcd2 {[%clk 0:00:30.5]} 35... Rd8 {[%clk 0:00:14.4]} 36. Bg3
{[%clk 0:00:30.5]} 36... Bf6 {[%clk 0:00:13.9]} 37. Nd3 {[%clk 0:00:24]} 37...
Be7 {[%clk 0:00:10.7]} 38. Ne5 {[%clk 0:00:17.7]} 38... Qe6 {[%clk 0:00:09.8]}
39. Nd3 {[%clk 0:00:17.3]} 39... h4 {[%clk 0:00:09.5]} 40. Bf4 {[%clk
0:00:17.9]} 40... g3 {[%clk 0:00:09.7]} 41. fxg3 {[%clk 0:00:18]} 41... hxg3
{[%clk 0:00:09.7]} 42. Bxg3 {[%clk 0:00:18.6]} 42... Rxe3 {[%clk 0:00:09.4]} 43.
Bf2 {[%clk 0:00:19.1]} 43... d4 {[%clk 0:00:07.8]} 44. cxd4 {[%clk 0:00:18.9]}
44... cxd4 {[%clk 0:00:08.2]} 45. Nf4 {[%clk 0:00:19.4]} 45... Qe4 {[%clk
0:00:08]} 46. Qc4+ {[%clk 0:00:18.8]} 46... Kh8 {[%clk 0:00:05.2]} 47. Qf7
{[%clk 0:00:18]} 47... Qxf4 {[%clk 0:00:03.6]} 48. Qh5+ {[%clk 0:00:17.7]} 48...
Kg7 {[%clk 0:00:03.3]} 49. Rxd4 {[%clk 0:00:15.1]} 49... Rxd4 {[%clk 0:00:02.5]}
50. Rf1 {[%clk 0:00:15.6]} 50... Qg4 {[%clk 0:00:02.3]} 51. Qxg4+ {[%clk
0:00:15.9]} 51... Rxg4 {[%clk 0:00:02.6]} 52. g3 {[%clk 0:00:16.5]} 52... Rexg3+
{[%clk 0:00:02.3]} 53. Bxg3 {[%clk 0:00:16.9]} 53... Rxg3+ {[%clk 0:00:03.2]}
54. Kf2 {[%clk 0:00:17.6]} 54... Rg2+ {[%clk 0:00:03.7]} 55. Ke1 {[%clk
0:00:18]} 55... Rxa2 {[%clk 0:00:04.3]} 56. Rg1+ {[%clk 0:00:17.8]} 56... Kf6
{[%clk 0:00:04.1]} 0-1

[Event "*** SCC Grand Prix: Titled Tuesday Blitz"]
[Site "Chess.com"]
[Date "2020.06.02"]
[Round "7"]
[White "FMJoseHerrera"]
[Black "LizaSolovyova"]
[Result "0-1"]
[WhiteElo "2646"]
[BlackElo "2519"]
[TimeControl "180+1"]
[EndTime "11:21:14 PDT"]
[Termination "LizaSolovyova won on time"]

1. Nf3 {[%clk 0:03:00.9]} 1... f5 {[%clk 0:02:59.7]} 2. g3 {[%clk 0:03:00.5]}
2... Nf6 {[%clk 0:03:00.6]} 3. d3 {[%clk 0:03:00.5]} 3... e6 {[%clk 0:03:00.9]}
4. Nc3 {[%clk 0:03:00.9]} 4... Be7 {[%clk 0:03:01.2]} 5. e4 {[%clk 0:03:01.2]}
5... d5 {[%clk 0:02:58.5]} 6. exf5 {[%clk 0:03:01]} 6... exf5 {[%clk 0:02:58.2]}
7. Bf4 {[%clk 0:03:01.2]} 7... d4 {[%clk 0:02:49.2]} 8. Ne2 {[%clk 0:02:58.8]}
8... c5 {[%clk 0:02:47.6]} 9. Bg2 {[%clk 0:02:58.5]} 9... Nc6 {[%clk 0:02:46.1]}
10. Qd2 {[%clk 0:02:52.8]} 10... O-O {[%clk 0:02:42.3]} 11. h4 {[%clk
0:02:51.2]} 11... Be6 {[%clk 0:02:40.2]} 12. h5 {[%clk 0:02:49.4]} 12... Re8
{[%clk 0:02:29.3]} 13. h6 {[%clk 0:02:46.4]} 13... g6 {[%clk 0:02:29.2]} 14. O-O
{[%clk 0:02:46.2]} 14... Ng4 {[%clk 0:02:26.3]} 15. Rae1 {[%clk 0:02:41.8]}
15... Bd5 {[%clk 0:02:23.6]} 16. c3 {[%clk 0:02:23.1]} 16... Bxf3 {[%clk
0:02:18.5]} 17. Bxf3 {[%clk 0:02:21.5]} 17... g5 {[%clk 0:02:18.6]} 18. cxd4
{[%clk 0:01:54.5]} 18... gxf4 {[%clk 0:02:09.4]} 19. Nxf4 {[%clk 0:01:55.4]}
19... Nxd4 {[%clk 0:02:07.6]} 20. Bd5+ {[%clk 0:01:37.6]} 20... Qxd5 {[%clk
0:02:02.7]} 21. Nxd5 {[%clk 0:01:38.5]} 21... Nf3+ {[%clk 0:02:02.7]} 22. Kg2
{[%clk 0:01:39.2]} 22... Nxd2 {[%clk 0:02:02.4]} 23. Nxe7+ {[%clk 0:01:39]}
23... Kf7 {[%clk 0:01:59.4]} 24. Nxf5 {[%clk 0:01:39]} 24... Nxf1 {[%clk
0:01:58]} 25. Nd6+ {[%clk 0:01:38.4]} 25... Kf8 {[%clk 0:01:57.9]} 26. Nxe8
{[%clk 0:01:36.4]} 26... Rxe8 {[%clk 0:01:58.8]} 27. Rxf1 {[%clk 0:01:35.2]}
27... Nxh6 {[%clk 0:01:57.5]} 28. Rh1 {[%clk 0:01:33.9]} 28... Kg7 {[%clk
0:01:57.1]} 29. Rc1 {[%clk 0:01:34]} 29... b6 {[%clk 0:01:54.7]} 30. b4 {[%clk
0:01:32.8]} 30... Rc8 {[%clk 0:01:50.8]} 31. bxc5 {[%clk 0:01:30.8]} 31... Rxc5
{[%clk 0:01:50.7]} 32. Re1 {[%clk 0:01:27.6]} 32... Ra5 {[%clk 0:01:50]} 33. Re2
{[%clk 0:01:25.5]} 33... Nf5 {[%clk 0:01:47.9]} 34. g4 {[%clk 0:01:23.7]} 34...
Nd4 {[%clk 0:01:44.8]} 35. Re4 {[%clk 0:01:24]} 35... Ra4 {[%clk 0:01:39.9]} 36.
Kg3 {[%clk 0:01:18]} 36... b5 {[%clk 0:01:39.6]} 37. f4 {[%clk 0:01:16.7]} 37...
h6 {[%clk 0:01:36.1]} 38. f5 {[%clk 0:01:15.9]} 38... Kf6 {[%clk 0:01:35.2]} 39.
Re8 {[%clk 0:01:12.4]} 39... Ra3 {[%clk 0:01:33.3]} 40. Kf4 {[%clk 0:01:10.7]}
40... Rxa2 {[%clk 0:01:29.9]} 41. Rh8 {[%clk 0:01:08.2]} 41... Kg7 {[%clk
0:01:28.6]} 42. Rd8 {[%clk 0:01:05.5]} 42... Nc6 {[%clk 0:01:27.3]} 43. Rd7+
{[%clk 0:01:05.1]} 43... Kf8 {[%clk 0:01:26.5]} 44. Rd6 {[%clk 0:01:02.7]} 44...
Ra4+ {[%clk 0:01:25.7]} 45. Kg3 {[%clk 0:00:45]} 45... Ne5 {[%clk 0:01:25.2]}
46. d4 {[%clk 0:00:45.7]} 46... Nf7 {[%clk 0:01:23.7]} 47. Rd7 {[%clk
0:00:42.8]} 47... b4 {[%clk 0:01:22.7]} 48. Kh4 {[%clk 0:00:41.7]} 48... a5
{[%clk 0:01:17.9]} 49. Kh5 {[%clk 0:00:41.8]} 49... Ke8 {[%clk 0:01:16.9]} 50.
Rb7 {[%clk 0:00:39.9]} 50... Ra1 {[%clk 0:01:12.3]} 51. Kg6 {[%clk 0:00:40.2]}
51... Nd6 {[%clk 0:01:12.1]} 52. Rb6 {[%clk 0:00:35]} 52... Kd7 {[%clk
0:01:11.5]} 53. Kxh6 {[%clk 0:00:33.4]} 53... Kc7 {[%clk 0:01:08.4]} 54. Ra6
{[%clk 0:00:24.5]} 54... b3 {[%clk 0:01:08.4]} 55. Ra7+ {[%clk 0:00:24.9]} 55...
Kb6 {[%clk 0:01:05.8]} 56. Rd7 {[%clk 0:00:24.3]} 56... Ne4 {[%clk 0:00:59.9]}
57. Rd8 {[%clk 0:00:21.2]} 57... Kc7 {[%clk 0:00:59.7]} 58. Re8 {[%clk
0:00:18.6]} 58... b2 {[%clk 0:00:55.6]} 59. Rxe4 {[%clk 0:00:18.3]} 59... b1=Q
{[%clk 0:00:55.4]} 60. Re6 {[%clk 0:00:19.2]} 60... Qg1 {[%clk 0:00:52.3]} 61.
g5 {[%clk 0:00:18.6]} 61... Qxd4 {[%clk 0:00:51.8]} 62. f6 {[%clk 0:00:18.6]}
62... Rh1+ {[%clk 0:00:51.9]} 63. Kg7 {[%clk 0:00:19]} 63... Qg4 {[%clk
0:00:50]} 64. Re5 {[%clk 0:00:13.5]} 64... Qh5 {[%clk 0:00:42.9]} 65. f7 {[%clk
0:00:10.5]} 65... Qh7+ {[%clk 0:00:39.9]} 66. Kf6 {[%clk 0:00:10.3]} 66... Rf1+
{[%clk 0:00:40.1]} 0-1

[Event "*** SCC Grand Prix: Titled Tuesday Blitz"]
[Site "Chess.com"]
[Date "2020.06.02"]
[Round "7"]
[White "CroissantNeuf"]
[Black "Oglob71"]
[Result "1-0"]
[WhiteElo "2394"]
[BlackElo "2505"]
[TimeControl "180+1"]
[EndTime "11:21:15 PDT"]
[Termination "CroissantNeuf won by resignation"]

1. e4 {[%clk 0:03:00.4]} 1... c5 {[%clk 0:02:59.6]} 2. Nf3 {[%clk 0:03:00.1]}
2... d6 {[%clk 0:03:00]} 3. Bb5+ {[%clk 0:02:58.5]} 3... Bd7 {[%clk 0:02:59.3]}
4. c4 {[%clk 0:02:57.8]} 4... Nf6 {[%clk 0:02:51.3]} 5. Nc3 {[%clk 0:02:57.1]}
5... g6 {[%clk 0:02:51.1]} 6. d4 {[%clk 0:02:55.2]} 6... cxd4 {[%clk 0:02:50.5]}
7. Nxd4 {[%clk 0:02:55.1]} 7... Bg7 {[%clk 0:02:50.9]} 8. Be3 {[%clk 0:02:51]}
8... O-O {[%clk 0:02:50.5]} 9. Bxd7 {[%clk 0:02:50.2]} 9... Qxd7 {[%clk
0:02:49.5]} 10. O-O {[%clk 0:02:49.6]} 10... Nc6 {[%clk 0:02:46.6]} 11. f3
{[%clk 0:02:49]} 11... Rac8 {[%clk 0:02:44.2]} 12. b3 {[%clk 0:02:48.8]} 12...
a6 {[%clk 0:02:44.5]} 13. a4 {[%clk 0:02:41.8]} 13... e6 {[%clk 0:02:44.1]} 14.
Qd2 {[%clk 0:02:36.4]} 14... Rfd8 {[%clk 0:02:37.8]} 15. Rad1 {[%clk 0:02:32.3]}
15... Ne5 {[%clk 0:02:25.5]} 16. h3 {[%clk 0:02:18.2]} 16... Qe7 {[%clk
0:02:16.4]} 17. Bg5 {[%clk 0:02:12.4]} 17... Qf8 {[%clk 0:01:50.3]} 18. f4
{[%clk 0:02:06.8]} 18... Nc6 {[%clk 0:01:50.3]} 19. Nxc6 {[%clk 0:02:05.6]}
19... bxc6 {[%clk 0:01:50]} 20. Qe1 {[%clk 0:02:00.5]} 20... h6 {[%clk
0:01:48.1]} 21. Bh4 {[%clk 0:01:54.5]} 21... Re8 {[%clk 0:01:37.2]} 22. e5
{[%clk 0:01:44.6]} 22... dxe5 {[%clk 0:01:30]} 23. fxe5 {[%clk 0:01:45.5]} 23...
Nh7 {[%clk 0:01:23.3]} 24. Rd7 {[%clk 0:01:16.4]} 24... Qc5+ {[%clk 0:01:13.5]}
25. Kh1 {[%clk 0:01:03.2]} 25... Qxe5 {[%clk 0:01:13.2]} 26. Rfxf7 {[%clk
0:00:48.9]} 26... Qxc3 {[%clk 0:00:54.3]} 27. Rxg7+ {[%clk 0:00:48.6]} 27...
Qxg7 {[%clk 0:00:53]} 28. Rxg7+ {[%clk 0:00:49.5]} 28... Kxg7 {[%clk 0:00:53.3]}
29. Qa5 {[%clk 0:00:39]} 29... g5 {[%clk 0:00:52.3]} 30. Bg3 {[%clk 0:00:34.6]}
30... e5 {[%clk 0:00:50]} 31. Bxe5+ {[%clk 0:00:32.9]} 31... Kg6 {[%clk
0:00:48.8]} 32. Bc3 {[%clk 0:00:26.9]} 32... Re6 {[%clk 0:00:42.6]} 33. Qxa6
{[%clk 0:00:24.4]} 33... Rce8 {[%clk 0:00:43]} 34. Qb7 {[%clk 0:00:21]} 34...
R8e7 {[%clk 0:00:41.2]} 35. Qc8 {[%clk 0:00:18.8]} 35... Nf6 {[%clk 0:00:39.8]}
36. Qh8 {[%clk 0:00:15.1]} 36... Ne4 {[%clk 0:00:37.1]} 37. Qg8+ {[%clk
0:00:14.7]} 37... Kh5 {[%clk 0:00:34.2]} 38. Be1 {[%clk 0:00:10.2]} 38... Nf6
{[%clk 0:00:22.4]} 39. g4+ {[%clk 0:00:07.7]} 39... Nxg4 {[%clk 0:00:22.6]} 40.
hxg4+ {[%clk 0:00:08]} 40... Kxg4 {[%clk 0:00:23.5]} 41. Bf2 {[%clk 0:00:07.7]}
41... Re2 {[%clk 0:00:23]} 42. Qf8 {[%clk 0:00:07.4]} 42... R7e4 {[%clk
0:00:20.4]} 43. Kg2 {[%clk 0:00:05.8]} 43... Rf4 {[%clk 0:00:20.4]} 44. Qc8+
{[%clk 0:00:05.8]} 44... Kh5 {[%clk 0:00:19.4]} 45. Qh3+ {[%clk 0:00:04.9]}
45... Kg6 {[%clk 0:00:19.1]} 46. Qd3+ {[%clk 0:00:04.8]} 46... Ree4 {[%clk
0:00:16.5]} 47. Bg3 {[%clk 0:00:04.8]} 47... Rg4 {[%clk 0:00:15.8]} 48. Kf3
{[%clk 0:00:05.1]} 48... h5 {[%clk 0:00:15.9]} 49. Qxe4+ {[%clk 0:00:04.8]}
49... Rxe4 {[%clk 0:00:16]} 50. Kxe4 {[%clk 0:00:05.7]} 50... h4 {[%clk
0:00:16.8]} 51. Bh2 {[%clk 0:00:05]} 51... Kh5 {[%clk 0:00:15.9]} 52. a5 {[%clk
0:00:04.4]} 52... g4 {[%clk 0:00:16.8]} 53. a6 {[%clk 0:00:05]} 53... g3 {[%clk
0:00:17.2]} 54. Bg1 {[%clk 0:00:04.8]} 54... h3 {[%clk 0:00:16.5]} 55. Kf3
{[%clk 0:00:05.4]} 55... h2 {[%clk 0:00:16.2]} 56. Bxh2 {[%clk 0:00:05.5]} 56...
gxh2 {[%clk 0:00:16.2]} 57. Kg2 {[%clk 0:00:06.2]} 1-0

[Event "*** SCC Grand Prix: Titled Tuesday Blitz"]
[Site "Chess.com"]
[Date "2020.06.02"]
[Round "7"]
[White "maximnovik"]
[Black "DanielTitichoca"]
[Result "1-0"]
[WhiteElo "2464"]
[BlackElo "2317"]
[TimeControl "180+1"]
[EndTime "11:21:15 PDT"]
[Termination "maximnovik won by checkmate"]

1. c4 {[%clk 0:03:00.9]} 1... e5 {[%clk 0:02:54.3]} 2. g3 {[%clk 0:03:00.3]}
2... Nc6 {[%clk 0:02:48.8]} 3. Bg2 {[%clk 0:02:57.1]} 3... f5 {[%clk 0:02:49]}
4. Nc3 {[%clk 0:02:55.8]} 4... Nf6 {[%clk 0:02:49.1]} 5. d3 {[%clk 0:02:54]}
5... Bb4 {[%clk 0:02:45.3]} 6. Bd2 {[%clk 0:02:53.2]} 6... O-O {[%clk 0:02:41]}
7. a3 {[%clk 0:02:53.1]} 7... Bxc3 {[%clk 0:02:40.6]} 8. Bxc3 {[%clk 0:02:52.8]}
8... d6 {[%clk 0:02:39.4]} 9. e3 {[%clk 0:02:50.6]} 9... Qe8 {[%clk 0:02:38.3]}
10. b4 {[%clk 0:02:44.1]} 10... f4 {[%clk 0:02:29.5]} 11. b5 {[%clk 0:02:28.5]}
11... Ne7 {[%clk 0:02:27.8]} 12. e4 {[%clk 0:02:18.9]} 12... Ng6 {[%clk
0:02:20.8]} 13. f3 {[%clk 0:01:52.2]} 13... Qe7 {[%clk 0:02:15]} 14. Ne2 {[%clk
0:01:49.4]} 14... b6 {[%clk 0:02:07.1]} 15. gxf4 {[%clk 0:01:47.2]} 15... exf4
{[%clk 0:01:29.7]} 16. Qd2 {[%clk 0:01:45.6]} 16... Nh5 {[%clk 0:01:22.7]} 17.
O-O-O {[%clk 0:01:42.7]} 17... a6 {[%clk 0:01:21]} 18. a4 {[%clk 0:01:40.5]}
18... axb5 {[%clk 0:01:20.8]} 19. axb5 {[%clk 0:01:39.9]} 19... Be6 {[%clk
0:01:11]} 20. Kb2 {[%clk 0:01:39.1]} 20... Qf7 {[%clk 0:00:50]} 21. Ra1 {[%clk
0:01:30.7]} 21... Bxc4 {[%clk 0:00:41.9]} 22. dxc4 {[%clk 0:01:25.4]} 22... Qxc4
{[%clk 0:00:41.5]} 23. Qd5+ {[%clk 0:01:22.7]} 23... Qxd5 {[%clk 0:00:39.7]} 24.
exd5 {[%clk 0:01:22.8]} 24... Rfe8 {[%clk 0:00:39.9]} 25. Rxa8 {[%clk
0:01:21.3]} 25... Rxa8 {[%clk 0:00:40.1]} 26. Nd4 {[%clk 0:01:21.7]} 26... Ne5
{[%clk 0:00:39]} 27. Ne6 {[%clk 0:01:15.6]} 27... Nc4+ {[%clk 0:00:37.9]} 28.
Kb3 {[%clk 0:01:15.1]} 28... Ne3 {[%clk 0:00:38.2]} 29. Rg1 {[%clk 0:01:03.8]}
29... Kf7 {[%clk 0:00:36]} 30. Bh3 {[%clk 0:01:02.5]} 30... Nxd5 {[%clk
0:00:27.9]} 31. Nxg7 {[%clk 0:01:01.2]} 31... Nhf6 {[%clk 0:00:22.9]} 32. Be6+
{[%clk 0:00:56.3]} 32... Ke7 {[%clk 0:00:22.2]} 33. Bxd5 {[%clk 0:00:50.9]}
33... Nxd5 {[%clk 0:00:22.2]} 34. Nf5+ {[%clk 0:00:51.4]} 34... Ke6 {[%clk
0:00:20.1]} 35. Nd4+ {[%clk 0:00:51.1]} 35... Kf7 {[%clk 0:00:20.4]} 36. Bb2
{[%clk 0:00:46.6]} 36... Re8 {[%clk 0:00:19.2]} 37. Kc4 {[%clk 0:00:43.8]} 37...
Ne3+ {[%clk 0:00:18.2]} 38. Kd3 {[%clk 0:00:43.7]} 38... Nd5 {[%clk 0:00:18.2]}
39. Bc1 {[%clk 0:00:39.7]} 39... Nb4+ {[%clk 0:00:11.3]} 40. Kc4 {[%clk
0:00:39]} 40... Na2 {[%clk 0:00:07.9]} 41. Bxf4 {[%clk 0:00:38.6]} 41... Ra8
{[%clk 0:00:04.3]} 42. Kb3 {[%clk 0:00:32.5]} 42... Ra5 {[%clk 0:00:04.1]} 43.
Bd2 {[%clk 0:00:31.5]} 43... Ra8 {[%clk 0:00:03.6]} 44. Ra1 {[%clk 0:00:30.2]}
44... Kf6 {[%clk 0:00:02.7]} 45. Rxa2 {[%clk 0:00:29.7]} 45... Re8 {[%clk
0:00:03]} 46. Bc3 {[%clk 0:00:28.3]} 46... Kg5 {[%clk 0:00:02.4]} 47. Re2 {[%clk
0:00:26]} 47... Rxe2 {[%clk 0:00:01.7]} 48. Nxe2 {[%clk 0:00:25.3]} 48... Kh4
{[%clk 0:00:02.5]} 49. Ng1 {[%clk 0:00:22.9]} 49... h5 {[%clk 0:00:00.8]} 50.
Bf6# {[%clk 0:00:20.8]} 1-0

[Event "*** SCC Grand Prix: Titled Tuesday Blitz"]
[Site "Chess.com"]
[Date "2020.06.02"]
[Round "7"]
[White "wanyaland"]
[Black "FMOlexandrProhorov"]
[Result "1-0"]
[WhiteElo "2304"]
[BlackElo "2086"]
[TimeControl "180+1"]
[EndTime "11:21:16 PDT"]
[Termination "wanyaland won on time"]

1. d4 {[%clk 0:03:00.9]} 1... g6 {[%clk 0:02:57.3]} 2. e4 {[%clk 0:03:00.4]}
2... Bg7 {[%clk 0:02:57.2]} 3. Nc3 {[%clk 0:03:01.3]} 3... c6 {[%clk 0:02:57.5]}
4. h4 {[%clk 0:03:02.2]} 4... d5 {[%clk 0:02:55]} 5. h5 {[%clk 0:03:02.3]} 5...
dxe4 {[%clk 0:02:53.7]} 6. Nge2 {[%clk 0:02:59.1]} 6... Bg4 {[%clk 0:02:45.7]}
7. hxg6 {[%clk 0:02:55.7]} 7... hxg6 {[%clk 0:02:45.6]} 8. Rxh8 {[%clk
0:02:52.3]} 8... Bxh8 {[%clk 0:02:46.5]} 9. Be3 {[%clk 0:02:51.6]} 9... Nf6
{[%clk 0:02:41.5]} 10. Qd2 {[%clk 0:02:51.7]} 10... Nbd7 {[%clk 0:02:37.6]} 11.
O-O-O {[%clk 0:02:49.4]} 11... Qa5 {[%clk 0:02:37.2]} 12. Kb1 {[%clk 0:02:46.3]}
12... O-O-O {[%clk 0:02:36.6]} 13. Nxe4 {[%clk 0:02:42.8]} 13... Qc7 {[%clk
0:02:20.3]} 14. Ng5 {[%clk 0:02:39.3]} 14... Nb6 {[%clk 0:02:15]} 15. Nxf7
{[%clk 0:02:33.6]} 15... Bg7 {[%clk 0:02:01.6]} 16. Nxd8 {[%clk 0:02:32]} 16...
Qxd8 {[%clk 0:02:02.5]} 17. f3 {[%clk 0:02:31.1]} 17... Bf5 {[%clk 0:02:01.3]}
18. Ng3 {[%clk 0:02:29.6]} 18... Be6 {[%clk 0:02:00]} 19. b3 {[%clk 0:02:26.4]}
19... Qd6 {[%clk 0:01:51]} 20. Ne4 {[%clk 0:02:23.6]} 20... Qa3 {[%clk
0:01:49.2]} 21. Nc5 {[%clk 0:02:20.1]} 21... Bf7 {[%clk 0:01:43.9]} 22. c4
{[%clk 0:02:13.3]} 22... Nbd7 {[%clk 0:01:38.9]} 23. Nxd7 {[%clk 0:02:04.4]}
23... Nxd7 {[%clk 0:01:37.3]} 24. Bd3 {[%clk 0:02:04.1]} 24... a5 {[%clk
0:01:35.8]} 25. Qc2 {[%clk 0:01:58.3]} 25... a4 {[%clk 0:01:31.2]} 26. Bc1
{[%clk 0:01:53.5]} 26... Qd6 {[%clk 0:01:29.4]} 27. bxa4 {[%clk 0:01:47.1]}
27... Bxd4 {[%clk 0:01:22.4]} 28. Bf1 {[%clk 0:01:36.6]} 28... c5 {[%clk
0:01:22.5]} 29. Bb2 {[%clk 0:01:33.1]} 29... Ne5 {[%clk 0:01:16.1]} 30. Qe4
{[%clk 0:01:26.9]} 30... g5 {[%clk 0:01:13.6]} 31. Rxd4 {[%clk 0:01:00]} 31...
cxd4 {[%clk 0:01:09.8]} 32. Qxd4 {[%clk 0:01:00.2]} 32... Qg6+ {[%clk
0:00:48.7]} 33. Ka1 {[%clk 0:00:56.3]} 33... Nc6 {[%clk 0:00:48.6]} 34. Qe4
{[%clk 0:00:52]} 34... Qd6 {[%clk 0:00:47.1]} 35. Qg4+ {[%clk 0:00:47.9]} 35...
Be6 {[%clk 0:00:46.2]} 36. Qxg5 {[%clk 0:00:46.8]} 36... Qd1+ {[%clk 0:00:46]}
37. Qc1 {[%clk 0:00:46.4]} 37... Qxa4 {[%clk 0:00:43.7]} 38. Be2 {[%clk
0:00:31.7]} 38... Nb4 {[%clk 0:00:42.2]} 39. a3 {[%clk 0:00:31.2]} 39... Nc2+
{[%clk 0:00:36.3]} 40. Ka2 {[%clk 0:00:31]} 40... b5 {[%clk 0:00:36.9]} 41. Qf4
{[%clk 0:00:18.9]} 41... Nb4+ {[%clk 0:00:32.4]} 42. Ka1 {[%clk 0:00:16]} 42...
bxc4 {[%clk 0:00:23.4]} 43. Qe4 {[%clk 0:00:12]} 43... Bd5 {[%clk 0:00:19.5]}
44. Qxe7 {[%clk 0:00:10.8]} 44... Nc2+ {[%clk 0:00:14.2]} 45. Kb1 {[%clk
0:00:09.9]} 45... c3 {[%clk 0:00:11.5]} 46. Qc5+ {[%clk 0:00:09.2]} 46... Bc6
{[%clk 0:00:10.1]} 47. Qxc3 {[%clk 0:00:07.3]} 47... Nxa3+ {[%clk 0:00:04.2]}
48. Qxa3 {[%clk 0:00:06.5]} 48... Qf4 {[%clk 0:00:02.5]} 49. Qd3 {[%clk
0:00:04.8]} 49... Qb4 {[%clk 0:00:01.9]} 50. Qc4 {[%clk 0:00:04.4]} 50... Qd6
{[%clk 0:00:01.7]} 51. Ba3 {[%clk 0:00:03.8]} 1-0